[Event "Srdja Dragasevic Memorial-A 2024"]
[Site "Cetinje"]
[Date "2024.06.24"]
[Round "4.10"]
[White "Willy, Stephen"]
[Black "Sukovic, Andrej"]
[Result "0-1"]
[ECO "C17"]
[WhiteElo "2046"]
[BlackElo "2350"]
[Annotator "RC"]
[PlyCount "58"]
[EventDate "2024.06.23"]
[EventType "swiss"]
[EventCountry "MNE"]
[SourceTitle "playchess.com"]
[Source "ChessBase"]
[SourceQuality "1"]
[TimeControl "40/5400+30:1800+30"]

1. e4 {[%emt 0:00:02]} e6 {[%emt 0:10:20]} 2. d4 {[%emt 0:00:08]} d5 {[%emt 0:00:06]} 3. Nc3 {[%emt 0:00:51]} Bb4 {[%emt 0:00:07]} 4. e5 {[%emt 0:00:14]} c5 {[%emt 0:00:07]} 5. Bd2 {[%emt 0:01:19]} cxd4 {[%emt 0:00:39]} 6. Nb5 {[%emt 0:00:06]} Bc5 {[%emt 0:00:06]} 7. Qg4 {[%emt 0:00:24]} g6 {[%emt 0:00:12]} 8. Nf3 {[%emt 0:07:56]} Nc6 {[%emt 0:01:05]} 9. Nbxd4 {[%emt 0:15:24]} Bxd4 {[%emt 0:33:06]} 10. Nxd4 {[%emt 0:00:08]} Nxe5 {[%emt 0:00:20]} 11. Qg3 {[%emt 0:02:51]} f6 {[%emt 0:02:29]} 12. h4 {[%emt 0:06:31]} Ne7 {[%emt 0:12:18]} 13. h5 {[%emt 0:08:54]} Qb6 {[%emt 0:06:10]} 14. Bc3 {[%emt 0:01:39]} g5 {[%emt 0:07:53]} 15. f4 {[%emt 0:05:25]} Nf7 {[%emt 0:00:47]} 16. Bb5+ {[%emt 0:12:12]} Bd7 {[%emt 0:01:08]} 17. Bxd7+ {[%emt 0:00:18]} Kxd7 {[%emt 0:00:05]} 18. O-O-O {[%emt 0:00:43]} Rhg8 {[%emt 0:01:28]} 19. Rhe1 {[%emt 0:08:16]} gxf4 {[%emt 0:00:42]} 20. Qh3 {[%emt 0:01:07]} Ng5 {[%emt 0:00:27]} 21. Qd3 {[%emt 0:04:20]} Rae8 {[%emt 0:05:56]} 22. Nb3 {[%emt 0:00:35]} e5 {[%emt 0:01:57]} 23. Bxe5 {[%emt 0:01:52]} fxe5 {[%emt 0:00:11]} 24. Rxe5 {[%emt 0:00:05]} Kc8 {[%emt 0:00:46]} 25. Rde1 {[%emt 0:00:40]} Ne4 {[%emt 0:00:53]} 26. Qh3+ {[%emt 0:06:23]} Kb8 {[%emt 0:00:23]} 27. Qh4 {[%emt 0:01:32]} Qd6 {[%emt 0:02:04]} 28. Qxf4 {[%emt 0:00:43]} Ref8 {[%emt 0:00:07]} 29. Qh2 {[%emt 0:00:35]} Nc6 {[%emt 0:01:25]} 0-1

[Event "Srdja Dragasevic Memorial-A 2024"]
[Site "Cetinje"]
[Date "2024.06.24"]
[Round "4.11"]
[White "Atakisi, Umut"]
[Black "Kolmakov, Ivan D."]
[Result "0-1"]
[ECO "A13"]
[WhiteElo "2335"]
[BlackElo "1902"]
[Annotator "RC"]
[PlyCount "56"]
[EventDate "2024.06.23"]
[EventType "swiss"]
[EventCountry "MNE"]
[SourceTitle "playchess.com"]
[Source "ChessBase"]
[SourceQuality "1"]
[TimeControl "40/5400+30:1800+30"]

1. c4 {[%emt 0:08:33]} e6 {[%emt 0:00:12]} 2. g3 {[%emt 0:00:07]} d5 {[%emt 0:00:25]} 3. Bg2 {[%emt 0:00:13]} Nc6 {[%emt 0:01:19]} 4. Nf3 {[%emt 0:01:29]} dxc4 {[%emt 0:02:47]} 5. O-O {[%emt 0:02:28]} Nf6 {[%emt 0:01:21]} 6. Qa4 {[%emt 0:05:42]} Qd5 {[%emt 0:02:22]} 7. Na3 {[%emt 0:07:40]} Bxa3 {[%emt 0:03:15]} 8. bxa3 {[%emt 0:01:02]} b5 {[%emt 0:05:25]} 9. Qc2 {[%emt 0:01:04]} Bb7 {[%emt 0:01:49]} 10. Bb2 {[%emt 0:05:44]} O-O {[%emt 0:20:12]} 11. a4 {[%emt 0:17:59]} a6 {[%emt 0:03:34]} 12. axb5 {[%emt 0:12:47]} axb5 {[%emt 0:00:13]} 13. a4 {[%emt 0:00:07]} b4 {[%emt 0:08:25]} 14. Rfc1 {[%emt 0:08:01]} Na5 {[%emt 0:08:54]} 15. Nh4 {[%emt 0:02:40]} Qc5 {[%emt 0:06:55]} 16. Bxb7 {[%emt 0:01:09]} Nxb7 {[%emt 0:00:02]} 17. Bxf6 {[%emt 0:00:37]} gxf6 {[%emt 0:00:12]} 18. Qxc4 {[%emt 0:00:17]} Qxc4 {[%emt 0:00:34]} 19. Rxc4 {[%emt 0:00:20]} c5 {[%emt 0:01:37]} 20. a5 {[%emt 0:04:19]} Rfc8 {[%emt 0:14:16]} 21. d4 {[%emt 0:03:26]} Nxa5 {[%emt 0:01:44]} 22. Rxc5 {[%emt 0:00:54]} Rxc5 {[%emt 0:00:26]} 23. dxc5 {[%emt 0:00:06]} b3 {[%emt 0:00:09]} 24. c6 {[%emt 0:07:26]} b2 {[%emt 0:00:43]} 25. Rb1 {[%emt 0:00:12]} Nc4 {[%emt 0:00:15]} 26. c7 {[%emt 0:02:52]} Rc8 {[%emt 0:00:25]} 27. Nf3 {[%emt 0:00:25]} Rxc7 {[%emt 0:00:06]} 28. Kg2 {[%emt 0:02:25]} Rb7 {[%emt 0:01:47]} 0-1

[Event "Srdja Dragasevic Memorial-A 2024"]
[Site "Cetinje"]
[Date "2024.06.24"]
[Round "4.12"]
[White "Skvortsova, Alena"]
[Black "Alimpic, Aleksa"]
[Result "0-1"]
[ECO "B13"]
[WhiteElo "2170"]
[BlackElo "2281"]
[Annotator "RC"]
[PlyCount "54"]
[EventDate "2024.06.23"]
[EventType "swiss"]
[EventCountry "MNE"]
[SourceTitle "playchess.com"]
[Source "ChessBase"]
[SourceQuality "1"]
[TimeControl "40/5400+30:1800+30"]

1. e4 {[%emt 0:04:49]} c6 {[%emt 0:00:08]} 2. d4 {[%emt 0:00:13]} d5 {[%emt 0:00:05]} 3. exd5 {[%emt 0:00:08]} cxd5 {[%emt 0:00:06]} 4. Nf3 {[%emt 0:00:04]} Nc6 {[%emt 0:00:21]} 5. c4 {[%emt 0:00:14]} Nf6 {[%emt 0:00:11]} 6. h3 {[%emt 0:00:17]} g6 {[%emt 0:02:31]} 7. c5 {[%emt 0:00:20]} Bg7 {[%emt 0:01:10]} 8. Bb5 {[%emt 0:00:47]} O-O {[%emt 0:04:44]} 9. O-O {[%emt 0:00:27]} Bd7 {[%emt 0:05:26]} 10. Nc3 {[%emt 0:01:58]} b6 {[%emt 0:04:49]} 11. Re1 {[%emt 0:02:35]} bxc5 {[%emt 0:06:34]} 12. dxc5 {[%emt 0:00:13]} e6 {[%emt 0:00:46]} 13. Bxc6 {[%emt 0:10:05]} Bxc6 {[%emt 0:00:06]} 14. Bf4 {[%emt 0:19:49]} Ne4 {[%emt 0:29:38]} 15. Nxe4 {[%emt 0:07:24]} dxe4 {[%emt 0:00:05]} 16. Ne5 {[%emt 0:19:11]} Bd5 {[%emt 0:00:16]} 17. Qc2 {[%emt 0:00:51]} Rc8 {[%emt 0:03:52]} 18. b4 {[%emt 0:04:27]} Qh4 {[%emt 0:01:59]} 19. Bg3 {[%emt 0:01:24]} Qh5 {[%emt 0:02:31]} 20. Rxe4 {[%emt 0:02:33]} Bxe4 {[%emt 0:01:19]} 21. Qxe4 {[%emt 0:00:05]} f5 {[%emt 0:09:15]} 22. Qc4 {[%emt 0:00:24]} f4 {[%emt 0:00:14]} 23. Bxf4 {[%emt 0:09:12]} Qf5 {[%emt 0:00:39]} 24. Re1 {[%emt 0:14:07]} Qxf4 {[%emt 0:04:03]} 25. Qxe6+ {[%emt 0:00:07]} Kh8 {[%emt 0:00:06]} 26. Nf3 {[%emt 0:00:17]} Qxb4 {[%emt 0:03:40]} 27. c6 {[%emt 0:01:14]} Qc5 {[%emt 0:00:49]} 0-1

[Event "Srdja Dragasevic Memorial-A 2024"]
[Site "Cetinje"]
[Date "2024.06.24"]
[Round "4.13"]
[White "Arora Honi"]
[Black "Holland, James P"]
[Result "1-0"]
[ECO "B67"]
[WhiteElo "2082"]
[BlackElo "2252"]
[Annotator "RC"]
[PlyCount "81"]
[EventDate "2024.06.23"]
[EventType "swiss"]
[EventCountry "MNE"]
[SourceTitle "playchess.com"]
[Source "ChessBase"]
[SourceQuality "1"]
[TimeControl "40/5400+30:1800+30"]

1. e4 {[%emt 0:02:37]} c5 {[%emt 0:00:04]} 2. Nf3 {[%emt 0:00:07]} d6 {[%emt 0:00:04]} 3. d4 {[%emt 0:00:06]} cxd4 {[%emt 0:00:05]} 4. Nxd4 {[%emt 0:00:05]} Nf6 {[%emt 0:00:03]} 5. Nc3 {[%emt 0:00:08]} Nc6 {[%emt 0:01:16]} 6. Bg5 {[%emt 0:00:19]} e6 {[%emt 0:00:14]} 7. Qd2 {[%emt 0:00:11]} a6 {[%emt 0:00:05]} 8. O-O-O {[%emt 0:00:16]} Bd7 {[%emt 0:01:30]} 9. f3 {[%emt 0:00:09]} Nxd4 {[%emt 0:00:53]} 10. Qxd4 {[%emt 0:00:09]} h6 {[%emt 0:00:09]} 11. Be3 {[%emt 0:03:34]} Bc6 {[%emt 0:00:23]} 12. Kb1 {[%emt 0:03:09]} d5 {[%emt 0:00:44]} 13. exd5 {[%emt 0:07:50]} Nxd5 {[%emt 0:00:50]} 14. Bc4 {[%emt 0:06:16]} Nxe3 {[%emt 0:03:56]} 15. Qxe3 {[%emt 0:00:08]} Qg5 {[%emt 0:00:21]} 16. f4 {[%emt 0:08:27]} Qc5 {[%emt 0:01:32]} 17. Qe2 {[%emt 0:04:47]} Be7 {[%emt 0:08:20]} 18. Ne4 {[%emt 0:05:54]} Bxe4 {[%emt 0:02:10]} 19. Qxe4 {[%emt 0:01:22]} O-O {[%emt 0:03:26]} 20. Rd7 {[%emt 0:07:56]} b5 {[%emt 0:02:44]} 21. Bd3 {[%emt 0:01:15]} g6 {[%emt 0:00:24]} 22. h4 {[%emt 0:03:11]} h5 {[%emt 0:07:40]} 23. g4 {[%emt 0:09:27]} Rad8 {[%emt 0:01:08]} 24. Rxe7 {[%emt 0:02:37]} Qxe7 {[%emt 0:00:37]} 25. gxh5 {[%emt 0:00:14]} Qf6 {[%emt 0:18:32]} 26. Rg1 {[%emt 0:10:48]} Qd4 {[%emt 0:11:27]} 27. Qg2 {[%emt 0:03:57]} Qxf4 {[%emt 0:04:26]} 28. hxg6 {[%emt 0:03:26]} f5 {[%emt 0:00:40]} 29. h5 {[%emt 0:04:59]} Qe3 {[%emt 0:14:54]} 30. Rh1 {[%emt 0:01:30]} Qh6 {[%emt 0:03:27]} 31. Qc6 {[%emt 0:00:38]} Rf6 {[%emt 0:00:28]} 32. a4 {[%emt 0:03:23]} Rdf8 {[%emt 0:01:27]} 33. axb5 {[%emt 0:00:45]} axb5 {[%emt 0:00:04]} 34. Bxb5 {[%emt 0:00:12]} f4 {[%emt 0:00:29]} 35. Qf3 {[%emt 0:02:38]} Qg5 {[%emt 0:02:07]} 36. Bd3 {[%emt 0:01:16]} Rb8 {[%emt 0:00:59]} 37. h6 {[%emt 0:01:09]} Qe5 {[%emt 0:01:36]} 38. b3 {[%emt 0:00:33]} Qc3 {[%emt 0:00:05]} 39. h7+ {[%emt 0:01:29]} Kh8 {[%emt 0:01:17]} 40. g7+ {[%emt 0:00:00]} Kxg7 {[%emt 0:00:00]} 41. Qb7+ {[%emt 0:01:30]} 1-0

[Event "Srdja Dragasevic Memorial-A 2024"]
[Site "Cetinje"]
[Date "2024.06.24"]
[Round "4.14"]
[White "Koljevic, Nikolina"]
[Black "Pogorelskikh, Sofia"]
[Result "1/2-1/2"]
[ECO "B31"]
[WhiteElo "2010"]
[BlackElo "2216"]
[Annotator "RC"]
[PlyCount "136"]
[EventDate "2024.06.23"]
[EventType "swiss"]
[EventCountry "MNE"]
[SourceTitle "playchess.com"]
[Source "ChessBase"]
[SourceQuality "1"]
[TimeControl "40/5400+30:1800+30"]

1. e4 {[%emt 0:00:02]} c5 {[%emt 0:01:01]} 2. Nf3 {[%emt 0:00:09]} Nc6 {[%emt 0:00:14]} 3. Bb5 {[%emt 0:00:09]} g6 {[%emt 0:00:12]} 4. O-O {[%emt 0:00:07]} Bg7 {[%emt 0:00:15]} 5. Re1 {[%emt 0:00:17]} e5 {[%emt 0:00:27]} 6. a3 {[%emt 0:00:51]} Nge7 {[%emt 0:00:41]} 7. b4 {[%emt 0:05:58]} d6 {[%emt 0:00:53]} 8. Nc3 {[%emt 0:08:24]} O-O {[%emt 0:00:46]} 9. h3 {[%emt 0:05:56]} h6 {[%emt 0:13:39]} 10. Bc4 {[%emt 0:06:11]} Nd4 {[%emt 0:09:42]} 11. Nxd4 {[%emt 0:09:04]} exd4 {[%emt 0:01:57]} 12. Nd5 {[%emt 0:00:56]} Be6 {[%emt 0:03:35]} 13. d3 {[%emt 0:06:33]} Bxd5 {[%emt 0:07:35]} 14. Bxd5 {[%emt 0:02:11]} Nxd5 {[%emt 0:01:32]} 15. exd5 {[%emt 0:00:05]} Qd7 {[%emt 0:06:21]} 16. Bf4 {[%emt 0:06:53]} Rfc8 {[%emt 0:05:23]} 17. Qd2 {[%emt 0:05:31]} g5 {[%emt 0:06:52]} 18. Bh2 {[%emt 0:01:00]} cxb4 {[%emt 0:02:27]} 19. axb4 {[%emt 0:02:46]} Rc3 {[%emt 0:01:22]} 20. Qe2 {[%emt 0:11:56]} Qf5 {[%emt 0:09:11]} 21. Bxd6 {[%emt 0:08:43]} Qxd5 {[%emt 0:00:46]} 22. Bg3 {[%emt 0:01:00]} a6 {[%emt 0:04:08]} 23. f4 {[%emt 0:03:09]} Rac8 {[%emt 0:01:02]} 24. Rec1 {[%emt 0:02:16]} Qc6 {[%emt 0:02:06]} 25. fxg5 {[%emt 0:01:04]} hxg5 {[%emt 0:00:24]} 26. Ra5 {[%emt 0:03:01]} Rxc2 {[%emt 0:05:30]} 27. Rxc2 {[%emt 0:00:05]} Qxc2 {[%emt 0:00:04]} 28. Qxc2 {[%emt 0:00:34]} Rxc2 {[%emt 0:00:07]} 29. Rxg5 {[%emt 0:00:15]} Kh7 {[%emt 0:00:59]} 30. Rg4 {[%emt 0:01:52]} Rc6 {[%emt 0:09:36]} 31. Rh4+ {[%emt 0:01:47]} Kg8 {[%emt 0:00:22]} 32. Kf1 {[%emt 0:02:14]} Rb6 {[%emt 0:01:49]} 33. Be1 {[%emt 0:00:23]} Rb5 {[%emt 0:00:33]} 34. Re4 {[%emt 0:02:08]} f5 {[%emt 0:01:55]} 35. Re8+ {[%emt 0:01:23]} Kf7 {[%emt 0:00:39]} 36. Rc8 {[%emt 0:00:04]} Ke6 {[%emt 0:02:04]} 37. h4 {[%emt 0:00:37]} Bf6 {[%emt 0:00:31]} 38. g3 {[%emt 0:01:24]} Rd5 {[%emt 0:01:19]} 39. Ke2 {[%emt 0:01:04]} Re5+ {[%emt 0:00:19]} 40. Kf2 {[%emt 0:00:00]} Re3 {[%emt 0:00:00]} 41. Re8+ {[%emt 0:07:00]} Be7 {[%emt 0:02:36]} 42. Bd2 {[%emt 0:00:55]} Kf7 {[%emt 0:04:13]} 43. Rb8 {[%emt 0:02:51]} Rxd3 {[%emt 0:01:04]} 44. Bg5 {[%emt 0:05:16]} Bxg5 {[%emt 0:02:28]} 45. hxg5 {[%emt 0:00:04]} Kg6 {[%emt 0:00:45]} 46. Rxb7 {[%emt 0:00:44]} Kxg5 {[%emt 0:00:43]} 47. Rg7+ {[%emt 0:00:11]} Kf6 {[%emt 0:01:06]} 48. Ra7 {[%emt 0:00:51]} Rb3 {[%emt 0:00:50]} 49. Rxa6+ {[%emt 0:01:50]} Ke5 {[%emt 0:00:15]} 50. Rb6 {[%emt 0:05:04]} Ke4 {[%emt 0:02:50]} 51. Re6+ {[%emt 0:01:54]} Kd3 {[%emt 0:02:05]} 52. Re5 {[%emt 0:04:21]} Kc2 {[%emt 0:08:06]} 53. Rc5+ {[%emt 0:02:59]} Kd1 {[%emt 0:04:40]} 54. b5 {[%emt 0:00:48]} d3 {[%emt 0:00:40]} 55. Rxf5 {[%emt 0:02:03]} d2 {[%emt 0:01:18]} 56. Rc5 {[%emt 0:00:33]} Rb4 {[%emt 0:01:00]} 57. Rd5 {[%emt 0:01:58]} Rb2 {[%emt 0:01:10]} 58. g4 {[%emt 0:00:34]} Kc1 {[%emt 0:00:39]} 59. Kf3 {[%emt 0:00:38]} Rxb5 {[%emt 0:01:07]} 60. Rd6 {[%emt 0:01:00]} d1=Q+ {[%emt 0:01:03]} 61. Rxd1+ {[%emt 0:00:03]} Kxd1 {[%emt 0:00:09]} 62. Kf4 {[%emt 0:00:02]} Ke2 {[%emt 0:01:59]} 63. g5 {[%emt 0:00:02]} Rb4+ {[%emt 0:01:10]} 64. Kf5 {[%emt 0:00:14]} Kf3 {[%emt 0:00:18]} 65. g6 {[%emt 0:00:25]} Rb5+ {[%emt 0:00:36]} 66. Kf6 {[%emt 0:00:25]} Kf4 {[%emt 0:00:36]} 67. g7 {[%emt 0:00:15]} Rb8 {[%emt 0:00:57]} 68. Kf7 {[%emt 0:00:36]} Rb7+ {[%emt 0:00:36]} 1/2-1/2

[Event "Srdja Dragasevic Memorial-A 2024"]
[Site "Cetinje"]
[Date "2024.06.24"]
[Round "4.15"]
[White "Djurovic, Peko"]
[Black "Abdulkarimli, Eljan"]
[Result "0-1"]
[ECO "C14"]
[WhiteElo "2292"]
[BlackElo "2124"]
[Annotator "RC"]
[PlyCount "66"]
[EventDate "2024.06.23"]
[EventType "swiss"]
[EventCountry "MNE"]
[SourceTitle "playchess.com"]
[Source "ChessBase"]
[SourceQuality "1"]
[TimeControl "40/5400+30:1800+30"]

1. e4 {[%emt 0:00:04]} e6 {[%emt 0:01:22]} 2. d4 {[%emt 0:00:07]} d5 {[%emt 0:00:09]} 3. Nc3 {[%emt 0:00:11]} Nf6 {[%emt 0:00:25]} 4. Bg5 {[%emt 0:00:09]} Be7 {[%emt 0:01:03]} 5. e5 {[%emt 0:00:34]} Nfd7 {[%emt 0:00:33]} 6. h4 {[%emt 0:00:10]} h6 {[%emt 0:00:37]} 7. Bxe7 {[%emt 0:00:13]} Qxe7 {[%emt 0:00:04]} 8. Qg4 {[%emt 0:01:15]} O-O {[%emt 0:09:07]} 9. O-O-O {[%emt 0:00:36]} c5 {[%emt 0:04:00]} 10. f4 {[%emt 0:03:54]} Nc6 {[%emt 0:17:22]} 11. Nf3 {[%emt 0:01:02]} a6 {[%emt 0:04:45]} 12. Rh3 {[%emt 0:14:25]} cxd4 {[%emt 0:08:54]} 13. Nxd4 {[%emt 0:03:13]} Nxd4 {[%emt 0:01:41]} 14. Rxd4 {[%emt 0:00:03]} f6 {[%emt 0:01:11]} 15. Qe2 {[%emt 0:09:15]} fxe5 {[%emt 0:04:44]} 16. fxe5 {[%emt 0:00:05]} Nxe5 {[%emt 0:01:18]} 17. Qxe5 {[%emt 0:01:27]} Rxf1+ {[%emt 0:00:15]} 18. Rd1 {[%emt 0:00:03]} Qf6 {[%emt 0:06:08]} 19. Qe2 {[%emt 0:00:46]} Rf2 {[%emt 0:01:31]} 20. Qd3 {[%emt 0:00:05]} Bd7 {[%emt 0:08:26]} 21. Re3 {[%emt 0:00:14]} Qf5 {[%emt 0:02:53]} 22. g4 {[%emt 0:01:29]} Qxd3 {[%emt 0:00:57]} 23. Rdxd3 {[%emt 0:00:05]} Raf8 {[%emt 0:00:27]} 24. b3 {[%emt 0:00:03]} Rg2 {[%emt 0:01:22]} 25. Rg3 {[%emt 0:00:08]} Rff2 {[%emt 0:00:49]} 26. Rxg2 {[%emt 0:00:04]} Rxg2 {[%emt 0:00:03]} 27. Rd4 {[%emt 0:00:26]} Bc6 {[%emt 0:01:14]} 28. Rf4 {[%emt 0:00:10]} e5 {[%emt 0:03:09]} 29. Rf5 {[%emt 0:00:07]} d4 {[%emt 0:00:26]} 30. Na4 {[%emt 0:00:03]} e4 {[%emt 0:07:48]} 31. Nc5 {[%emt 0:00:05]} e3 {[%emt 0:02:23]} 32. Kb2 {[%emt 0:02:51]} Rxg4 {[%emt 0:01:14]} 33. h5 {[%emt 0:00:04]} Rg5 {[%emt 0:03:24]} 0-1

[Event "Srdja Dragasevic Memorial-A 2024"]
[Site "Cetinje"]
[Date "2024.06.24"]
[Round "4.16"]
[White "Pusara, Mihailo"]
[Black "Nikolic, Nebojsa"]
[Result "1-0"]
[ECO "B96"]
[WhiteElo "2117"]
[BlackElo "2268"]
[Annotator "RC"]
[PlyCount "91"]
[EventDate "2024.06.23"]
[EventType "swiss"]
[EventCountry "MNE"]
[SourceTitle "playchess.com"]
[Source "ChessBase"]
[SourceQuality "1"]
[TimeControl "40/5400+30:1800+30"]

1. e4 {[%emt 0:05:18]} c5 {[%emt 0:00:14]} 2. Nf3 {[%emt 0:00:12]} d6 {[%emt 0:00:06]} 3. d4 {[%emt 0:00:05]} cxd4 {[%emt 0:00:06]} 4. Nxd4 {[%emt 0:00:04]} Nf6 {[%emt 0:00:09]} 5. Nc3 {[%emt 0:00:05]} a6 {[%emt 0:00:08]} 6. Bg5 {[%emt 0:00:05]} e6 {[%emt 0:00:14]} 7. f4 {[%emt 0:00:07]} h6 {[%emt 0:00:12]} 8. Bh4 {[%emt 0:00:04]} Qb6 {[%emt 0:00:14]} 9. a3 {[%emt 0:00:07]} Be7 {[%emt 0:00:22]} 10. Bf2 {[%emt 0:00:05]} Qc7 {[%emt 0:00:10]} 11. Qf3 {[%emt 0:00:18]} Nbd7 {[%emt 0:00:54]} 12. O-O-O {[%emt 0:00:27]} b5 {[%emt 0:00:42]} 13. g4 {[%emt 0:00:16]} g5 {[%emt 0:00:40]} 14. h4 {[%emt 0:00:20]} gxf4 {[%emt 0:01:01]} 15. Be2 {[%emt 0:00:05]} Ne5 {[%emt 0:04:40]} 16. Qxf4 {[%emt 0:00:06]} Nexg4 {[%emt 0:09:35]} 17. Bxg4 {[%emt 0:00:06]} e5 {[%emt 0:00:04]} 18. Qxf6 {[%emt 0:00:12]} Bxf6 {[%emt 0:00:10]} 19. Nd5 {[%emt 0:00:05]} Qd8 {[%emt 0:00:42]} 20. Nf5 {[%emt 0:01:09]} Bxf5 {[%emt 0:13:22]} 21. Bxf5 {[%emt 0:00:13]} Rb8 {[%emt 0:01:10]} 22. Rd3 {[%emt 0:00:38]} Rg8 {[%emt 0:09:40]} 23. Rc3 {[%emt 0:01:45]} Rg2 {[%emt 0:07:20]} 24. Be1 {[%emt 0:06:52]} Kf8 {[%emt 0:09:21]} 25. Rc7 {[%emt 0:02:30]} a5 {[%emt 0:17:57]} 26. Rf1 {[%emt 0:24:47]} b4 {[%emt 0:05:33]} 27. Rd7 {[%emt 0:01:37]} Bg5+ {[%emt 0:05:53]} 28. Kb1 {[%emt 0:06:59]} bxa3 {[%emt 0:00:56]} 29. Rxd8+ {[%emt 0:00:48]} Bxd8 {[%emt 0:00:04]} 30. b3 {[%emt 0:01:03]} a2+ {[%emt 0:07:02]} 31. Kxa2 {[%emt 0:00:27]} Rxc2+ {[%emt 0:00:13]} 32. Ka3 {[%emt 0:00:41]} Rc1 {[%emt 0:04:31]} 33. Kb2 {[%emt 0:01:45]} Rd1 {[%emt 0:00:05]} 34. Nc3 {[%emt 0:04:50]} Rd4 {[%emt 0:00:50]} 35. Kc2 {[%emt 0:02:10]} a4 {[%emt 0:01:37]} 36. Nxa4 {[%emt 0:01:21]} Rb7 {[%emt 0:01:12]} 37. Bc3 {[%emt 0:07:34]} Rc7 {[%emt 0:00:06]} 38. Kb2 {[%emt 0:02:52]} Rd3 {[%emt 0:00:07]} 39. Ba5 {[%emt 0:01:29]} Rb7 {[%emt 0:00:24]} 40. Bxd8 {[%emt 0:00:00]} Rdxb3+ {[%emt 0:00:00]} 41. Kc2 {[%emt 0:01:59]} Ra3 {[%emt 0:01:47]} 42. Nc3 {[%emt 0:01:23]} Ke8 {[%emt 0:00:12]} 43. Bf6 {[%emt 0:00:36]} Rc7 {[%emt 0:00:37]} 44. Rf3 {[%emt 0:00:24]} Ra2+ {[%emt 0:00:37]} 45. Kb3 {[%emt 0:00:30]} Rca7 {[%emt 0:01:29]} 46. Nxa2 {[%emt 0:00:12]} 1-0

[Event "Srdja Dragasevic Memorial-A 2024"]
[Site "Cetinje"]
[Date "2024.06.24"]
[Round "4.17"]
[White "Miletic, Vuk"]
[Black "Engin, Onur Cinar"]
[Result "0-1"]
[ECO "D13"]
[WhiteElo "2193"]
[BlackElo "2114"]
[Annotator "RC"]
[PlyCount "100"]
[EventDate "2024.06.23"]
[EventType "swiss"]
[EventCountry "MNE"]
[SourceTitle "playchess.com"]
[Source "ChessBase"]
[SourceQuality "1"]
[TimeControl "40/5400+30:1800+30"]

1. d4 {[%emt 0:07:45]} d5 {[%emt 0:00:18]} 2. c4 {[%emt 0:01:42]} c6 {[%emt 0:00:07]} 3. Nc3 {[%emt 0:06:45]} Nf6 {[%emt 0:00:22]} 4. cxd5 {[%emt 0:00:07]} cxd5 {[%emt 0:00:05]} 5. Bf4 {[%emt 0:02:44]} Nc6 {[%emt 0:02:06]} 6. Nf3 {[%emt 0:00:06]} e6 {[%emt 0:02:21]} 7. e3 {[%emt 0:01:29]} Be7 {[%emt 0:02:26]} 8. h3 {[%emt 0:10:18]} O-O {[%emt 0:03:30]} 9. Bd3 {[%emt 0:00:20]} Bd7 {[%emt 0:01:18]} 10. O-O {[%emt 0:02:06]} Qb6 {[%emt 0:04:58]} 11. Qe2 {[%emt 0:15:34]} Rfc8 {[%emt 0:01:31]} 12. Rac1 {[%emt 0:02:29]} Qd8 {[%emt 0:04:48]} 13. Ne5 {[%emt 0:02:09]} Be8 {[%emt 0:01:35]} 14. Bb1 {[%emt 0:14:39]} Nxe5 {[%emt 0:12:14]} 15. dxe5 {[%emt 0:02:22]} Nd7 {[%emt 0:00:13]} 16. Nb5 {[%emt 0:06:29]} Qb6 {[%emt 0:05:58]} 17. Nd4 {[%emt 0:00:09]} f6 {[%emt 0:20:08]} 18. Nf3 {[%emt 0:07:04]} Nc5 {[%emt 0:03:49]} 19. exf6 {[%emt 0:05:28]} gxf6 {[%emt 0:02:14]} 20. Ne5 {[%emt 0:00:25]} fxe5 {[%emt 0:07:31]} 21. Qg4+ {[%emt 0:00:28]} Bg6 {[%emt 0:00:13]} 22. Bxg6 {[%emt 0:04:57]} exf4 {[%emt 0:00:06]} 23. Bb1+ {[%emt 0:01:54]} Kf8 {[%emt 0:03:45]} 24. Qxf4+ {[%emt 0:00:54]} Ke8 {[%emt 0:00:17]} 25. b4 {[%emt 0:00:56]} Nd7 {[%emt 0:01:19]} 26. Bxh7 {[%emt 0:00:46]} Nf6 {[%emt 0:03:19]} 27. Bg6+ {[%emt 0:01:13]} Kd8 {[%emt 0:01:57]} 28. a3 {[%emt 0:02:05]} Qd6 {[%emt 0:03:01]} 29. Qd4 {[%emt 0:01:03]} Qb6 {[%emt 0:01:49]} 30. Qf4 {[%emt 0:00:32]} Rxc1 {[%emt 0:00:37]} 31. Rxc1 {[%emt 0:00:01]} Rc8 {[%emt 0:00:08]} 32. Rd1 {[%emt 0:00:35]} Qa6 {[%emt 0:02:07]} 33. g4 {[%emt 0:00:53]} Qxa3 {[%emt 0:01:43]} 34. g5 {[%emt 0:00:25]} Nd7 {[%emt 0:00:21]} 35. Qf7 {[%emt 0:00:34]} Rc1 {[%emt 0:03:36]} 36. Rxc1 {[%emt 0:00:05]} Qxc1+ {[%emt 0:00:02]} 37. Kg2 {[%emt 0:00:02]} Bxg5 {[%emt 0:00:54]} 38. Qg8+ {[%emt 0:01:17]} Kc7 {[%emt 0:00:19]} 39. Be8 {[%emt 0:00:11]} Bd8 {[%emt 0:01:15]} 40. Qxe6 {[%emt 0:00:00]} Qc6 {[%emt 0:00:00]} 41. Qf5 {[%emt 0:09:35]} Qd6 {[%emt 0:06:34]} 42. Bf7 {[%emt 0:04:54]} Nf6 {[%emt 0:04:42]} 43. b5 {[%emt 0:00:31]} Kb6 {[%emt 0:09:22]} 44. h4 {[%emt 0:01:18]} Qd7 {[%emt 0:01:42]} 45. Be6 {[%emt 0:01:11]} Qxb5 {[%emt 0:01:11]} 46. Qe5 {[%emt 0:02:49]} Qb4 {[%emt 0:01:09]} 47. Bf5 {[%emt 0:01:18]} a5 {[%emt 0:01:04]} 48. h5 {[%emt 0:02:34]} Nxh5 {[%emt 0:01:58]} 49. Qxd5 {[%emt 0:02:18]} Be7 {[%emt 0:00:18]} 50. Bc8 {[%emt 0:00:44]} Kc7 {[%emt 0:00:12]} 0-1